bitfinex-derivatives/quotes_ETHF0:USTF0_20250101
["timestamp","ask_amount","ask_price","bid_price","bid_amount"]
[1735736040569,0.4467,3347.4,3347.1,5.1093785]
[1735736040774,0.74602,3347.4,3347.3,0.29933]
[1735736041571,0.29931,3347.5,3347.4,0.29931]
[1735736044075,0.29932,3347.4,3347.3,0.72642]
[1735736044481,1.37362726,3347.4,3347.3,0.72642]
[1735736045679,1.37362726,3347.4,3347.3,0.29932]
[1735736047881,0.29933,3347.2,3347.1,4.9681185]
[1735736048078,1.37363726,3347.2,3347.1,4.6687785]
[1735736048477,1.81053726,3347.2,3347.1,4.6687785]
[1735736049282,1.51120726,3347.2,3347.0,46.2032285]
[1735736049483,0.29934,3347.1,3347.0,46.2032285]
[1735736053280,0.73624,3347.2,3347.1,0.29934]
[1735736053987,0.73624,3347.2,3347.1,11.73358568]
[1735736054194,0.29933,3347.3,3347.2,0.29932]
[1735736056889,0.29933,3347.3,3347.2,4.9680985]
[1735736061094,0.29933,3347.3,3347.2,0.29932]
[1735736063896,0.29933,3347.3,3347.2,0.72282]
[1735736064499,0.4345,3347.5,3347.2,0.4235]
[1735736064698,0.29933,3347.4,3347.3,0.29932]
[1735736065403,0.29931,3347.5,3347.4,0.29931]
[1735736065608,1.37361726,3347.5,3347.4,0.29931]
[1735736068213,1.81061726,3347.5,3347.4,0.29931]
[1735736070617,1.81061726,3347.5,3347.4,0.72111]
[1735736073720,1.81061726,3347.5,3347.4,0.4218]
[1735736074522,0.29932,3347.4,3347.3,0.29932]
[1735736074720,0.29932,3347.4,3347.3,4.9680985]
[1735736079015,0.29932,3347.4,3347.3,4.6687785]
[1735736079219,0.29932,3347.4,3347.3,4.9681085]
[1735736083426,0.29932,3347.4,3347.3,0.29933]
[1735736090621,0.29932,3347.5,3347.4,0.29931]
[1735736091828,0.29932,3347.5,3347.4,4.9680885]
[1735736093324,0.29932,3347.5,3347.4,4.6687785]
[1735736094331,1.07430726,3347.6,3347.3,4.6687785]
[1735736094528,0.72792,3347.4,3347.3,4.6687785]
[1735736097628,0.29932,3347.4,3347.3,4.9681085]
[1735736098126,0.29932,3347.4,3347.3,0.29933]
[1735736098726,0.29933,3347.3,3347.2,5.3949085]
[1735736099432,0.29933,3347.3,3347.2,8.6027085]
[1735736099729,0.29932,3347.4,3347.2,8.6027085]
[1735736100129,0.29932,3347.4,3347.3,0.29933]
[1735736100831,0.29931,3347.5,3347.4,0.29931]
[1735736102231,0.29931,3347.5,3347.4,0.73511]
[1735736102428,0.2993,3347.6,3347.5,0.29931]
[1735736102635,0.2993,3347.6,3347.5,0.72631]
[1735736102832,0.2993,3347.6,3347.5,0.427]
[1735736103929,0.2993,3347.6,3347.5,0.72631]
[1735736104234,0.2993,3347.6,3347.5,0.427]
[1735736104434,3.2078,3347.8,3347.5,0.427]
[1735736104736,0.75756,3348.1,3348.0,0.29926]
[1735736105026,4.0847,3348.5,3348.0,41.87430726]
[1735736105232,0.29925,3348.2,3348.1,1.20175]
[1735736106035,3.50702,3348.5,3348.4,0.29923]
[1735736106337,3.2078,3348.5,3348.4,1.37353726]
[1735736106528,3.50702,3348.5,3348.4,1.37353726]
[1735736107036,3.2078,3348.5,3348.4,1.37353726]
[1735736107235,3.50702,3348.5,3348.4,1.37353726]
[1735736108035,3.2078,3348.5,3348.4,1.37353726]
[1735736108334,3.50702,3348.5,3348.4,1.37353726]
[1735736109331,3.2078,3348.5,3348.4,1.37353726]
[1735736109732,3.50702,3348.5,3348.4,0.29923]
[1735736110938,3.50702,3348.5,3348.3,0.29923]
[1735736111937,0.29923,3348.4,3348.3,0.29923]
[1735736112231,0.29925,3348.2,3348.1,1.20175]
[1735736112432,0.29925,3348.2,3348.1,2.27605726]
[1735736118246,0.29925,3348.2,3348.1,2.69655726]
[1735736125647,3.2078,3348.5,3348.1,2.39730726]
[1735736125847,0.29924,3348.4,3348.3,1.37353726]
[1735736128145,3.2078,3348.5,3348.1,2.39730726]
[1735736128346,0.29925,3348.2,3348.1,2.69655726]
[1735736130047,0.29925,3348.2,3348.1,2.39730726]
[1735736130349,0.29925,3348.2,3348.1,1.95240726]
[1735736131149,0.29925,3348.2,3348.1,1.49480726]
[1735736131946,0.29925,3348.2,3348.1,1.79405726]
[1735736137158,0.29925,3348.2,3348.1,0.4205]
[1735736137360,0.29925,3348.1,3348.0,40.8]
[1735736137561,0.29927,3347.9,3347.8,3.2078]
[1735736138053,0.29927,3347.9,3347.8,44.0078]
[1735736141762,1.37357726,3347.9,3347.8,44.0078]
[1735736142452,1.37357726,3347.9,3347.8,3.2078]
[1735736143261,1.07430726,3347.9,3347.5,40.8]
[1735736143563,1.37360726,3347.6,3347.5,40.8]
[1735736144265,1.07430726,3347.6,3347.3,4.7084618]
[1735736144463,1.37362726,3347.4,3347.3,4.7084618]
[1735736145259,1.07430726,3347.4,3347.2,44.0078]
[1735736145463,1.61953,3347.3,3347.2,44.0078]
[1735736145761,1.61953,3347.3,3347.2,40.8]
[1735736146367,1.3202,3347.3,3347.0,4.7084618]
[1735736146568,0.29934,3347.1,3347.0,4.7084618]
[1735736146764,0.29937,3346.8,3346.7,4.7084618]
[1735736146963,0.29937,3346.8,3346.7,45.5084618]
[1735736147362,0.73637,3346.8,3346.7,4.7084618]
[1735736148058,0.73637,3346.8,3346.5,40.8]
[1735736148059,0.29939,3346.6,3346.5,40.8]
[1735736151267,0.29939,3346.6,3346.5,42.17370726]
[1735736152969,0.29938,3346.8,3346.7,0.29938]
[1735736153171,0.29938,3346.8,3346.7,4.58148726]
[1735736154675,1.07430726,3347.2,3346.7,4.28210726]
[1735736154865,0.29937,3346.9,3346.8,0.29937]
[1735736155576,1.07430726,3347.2,3346.7,4.28210726]
[1735736155770,0.29937,3346.8,3346.7,3.50718]
[1735736156967,0.74747,3346.9,3346.7,3.50718]
[1735736157168,0.74747,3346.9,3346.8,0.29937]
[1735736157674,0.29937,3346.8,3346.7,3.50718]
[1735736158973,1.18737,3346.8,3346.7,3.50718]
[1735736161372,1.18737,3346.8,3346.5,40.8]
[1735736161675,0.29939,3346.6,3346.5,40.8]
[1735736161873,0.29939,3346.6,3346.5,41.0994]
[1735736162671,0.888,3346.8,3346.5,40.8]
[1735736162870,0.4213,3346.8,3346.6,0.29938]
[1735736163173,0.4213,3346.8,3346.7,3.50718]
[1735736163367,0.72067,3346.8,3346.7,3.50718]
[1735736164581,0.4213,3346.8,3346.7,3.50718]
[1735736164879,0.457,3347.1,3346.7,3.2078]
[1735736165078,0.29936,3347.0,3346.9,0.29935]
[1735736165279,0.29934,3347.2,3347.1,0.29934]
[1735736166472,0.74827,3347.6,3347.1,0.29934]
[1735736166473,3.2078,3347.9,3347.1,3.2078]
[1735736166678,0.29931,3347.6,3347.5,0.2993]
[1735736170074,0.2993,3347.7,3347.6,0.29929]
[1735736170282,0.29929,3347.8,3347.7,0.29928]
[1735736170873,0.29929,3347.8,3347.7,41.09928]
[1735736171083,0.29929,3347.8,3347.7,40.8]
[1735736172983,0.29929,3347.8,3347.7,41.09929]
[1735736173673,0.29929,3347.8,3347.7,40.8]
[1735736174574,1.3278,3348.1,3347.6,3.50709]
[1735736174781,0.29929,3347.7,3347.6,3.50709]
[1735736175076,0.29929,3347.7,3347.6,44.30709]
[1735736178280,0.29929,3347.8,3347.7,0.29928]
[1735736178679,0.29929,3347.8,3347.7,0.74888]
[1735736179789,0.29929,3347.8,3347.7,0.74889]
[1735736180081,0.29929,3347.8,3347.7,0.4496]
[1735736180281,0.29929,3347.7,3347.6,44.0078]
[1735736182182,1.37307452,3347.7,3347.6,44.0078]
[1735736183086,1.37307452,3347.7,3347.6,44.3071]
[1735736184291,0.29929,3347.7,3347.6,44.3071]
[1735736184585,0.29929,3347.7,3347.6,44.0078]
[1735736184785,2.56763956,3347.7,3347.6,3.2078]
[1735736188087,0.29933,3347.3,3347.2,40.8]
[1735736188592,2.04707,3347.6,3346.9,3.2078]
[1735736188887,0.29935,3347.1,3347.0,0.29934]
[1735736189089,0.29935,3347.1,3347.0,41.09934]
[1735736190786,0.29935,3347.1,3347.0,41.53224]
[1735736190988,0.29935,3347.1,3347.0,41.99614]
[1735736191284,0.29934,3347.2,3347.1,0.29933]
[1735736192782,0.29933,3347.4,3347.3,0.29932]
[1735736193587,1.2988,3347.6,3347.3,40.8]
[1735736193889,1.59811,3347.6,3347.5,0.29931]
[1735736194094,2.26834956,3348.0,3347.4,3.64]
[1735736194290,0.29929,3347.7,3347.6,0.29929]
[1735736194484,0.29929,3347.8,3347.7,0.29928]
[1735736198488,0.2993,3347.7,3347.6,0.29929]
[1735736198687,0.2993,3347.6,3347.5,0.7518]
[1735736210404,0.8985,3347.9,3347.5,0.4525]
[1735736210602,0.2993,3347.7,3347.6,0.29929]
[1735736211007,0.2993,3347.7,3347.6,41.09929]
[1735736219617,1.97220669,3347.9,3347.5,3.2078]
[1735736219811,0.2993,3347.6,3347.5,3.5071]
[1735736220311,0.2993,3347.6,3347.5,44.3071]
[1735736221313,1.07370669,3347.7,3347.5,44.3071]
[1735736221518,1.07370669,3347.7,3347.5,44.0078]
[1735736221719,1.07370669,3347.7,3347.6,0.2993]
[1735736222019,1.97220669,3347.9,3347.7,0.29929]
[1735736222726,1.97220669,3347.9,3347.8,0.29928]
[1735736225237,0.8985,3347.9,3347.8,0.29928]
[1735736225417,0.4555,3347.9,3347.8,0.29928]
[1735736225616,0.4542,3348.0,3347.6,0.4348]
[1735736225822,0.4542,3348.0,3347.9,0.29927]
[1735736226123,1.50810669,3348.1,3348.0,0.29926]
[1735736227322,0.4483,3348.2,3348.1,0.29925]
[1735736227925,1.07370669,3348.4,3348.3,0.29924]
[1735736230625,3.2078,3348.6,3348.1,0.4631]
[1735736230929,4.28150669,3348.6,3348.5,0.29922]
[1735736232029,1.07370669,3348.6,3348.5,0.29922]
[1735736233424,1.37291669,3348.6,3348.5,0.29922]
[1735736234022,0.29921,3348.6,3348.5,0.29922]
[1735736234329,1.37291669,3348.6,3348.5,0.29922]
[1735736241328,0.29921,3348.6,3348.5,0.29922]
[1735736241536,1.37291669,3348.6,3348.5,0.29922]
[1735736242337,1.07370669,3348.6,3348.3,0.4464]
[1735736242640,0.75923,3348.5,3348.4,0.29922]
[1735736244531,1.83293669,3348.5,3348.4,0.29922]
[1735736244936,3.2078,3348.8,3348.2,0.445]
[1735736245141,0.29922,3348.6,3348.5,0.29921]
[1735736245343,1.37292669,3348.6,3348.5,0.29921]
[1735736246142,1.07370669,3348.6,3348.5,0.29921]
[1735736247639,3.6678,3348.8,3348.7,0.2992]
[1735736247640,5.04070669,3348.8,3348.7,0.2992]
[1735736247840,4.28150669,3348.8,3348.7,0.2992]
[1735736248140,3.2078,3348.8,3348.7,0.2992]
[1735736248645,3.2078,3348.8,3348.7,41.0992]
[1735736248947,3.2078,3348.8,3348.7,0.2992]
[1735736249545,3.2078,3348.8,3348.7,41.0992]
[1735736250350,1.07370669,3349.0,3348.9,0.29918]
[1735736251040,3.2078,3349.3,3348.9,0.436]
[1735736251242,1.50300669,3349.5,3349.4,0.29914]
[1735736252145,0.4293,3349.5,3349.4,0.29914]
[1735736252942,2.28901669,3349.7,3349.6,0.29912]
[1735736253440,2.72731669,3349.7,3349.4,0.4289]
[1735736253749,0.29913,3349.5,3349.4,0.4289]
[1735736255848,1.37283669,3349.5,3349.4,0.4289]
[1735736256550,0.29913,3349.5,3349.4,0.4289]
[1735736256751,1.37283669,3349.5,3349.4,0.4289]
[1735736257549,0.29913,3349.5,3349.4,0.4289]
[1735736259849,3.2078,3349.8,3349.4,1.50260669]
[1735736260050,0.29912,3349.7,3349.6,0.29912]
[1735736261051,3.2078,3349.8,3349.4,1.50260669]
[1735736261247,3.50691,3349.8,3349.7,0.29911]
[1735736261550,0.29912,3349.7,3349.6,0.29911]
[1735736263553,4.28150669,3349.8,3349.4,0.4289]
[1735736263754,0.29913,3349.6,3349.5,0.29912]
[1735736264754,0.29913,3349.6,3349.4,0.72803]
[1735736264755,0.29913,3349.5,3349.4,0.72803]
[1735736265455,1.07370669,3349.6,3349.3,0.4437]
[1735736265656,1.07370669,3349.4,3349.0,3.2078]
[1735736265951,1.37287669,3349.1,3349.0,3.2078]
[1735736268354,0.29917,3349.1,3349.0,3.2078]
[1735736269150,1.18687,3349.1,3349.0,3.2078]
[1735736274059,1.18687,3349.1,3349.0,3.50697]
[1735736275057,3.2078,3349.8,3349.0,3.2078]
[1735736275258,0.29914,3349.5,3349.4,0.29913]
[1735736276257,0.29914,3349.4,3349.3,0.29914]
[1735736277060,0.29916,3349.3,3349.2,0.29915]
[1735736279459,0.29917,3349.1,3349.0,3.50697]
[1735736280062,0.29917,3349.1,3349.0,3.2078]
[1735736280364,0.72617,3349.1,3349.0,3.2078]
[1735736281757,0.2992,3348.7,3348.6,3.50701]
[1735736282165,0.29919,3348.9,3348.8,0.29919]
[1735736282761,0.2992,3348.7,3348.6,3.50701]
[1735736282962,0.2992,3348.7,3348.6,3.2078]
[1735736284064,0.2992,3348.8,3348.7,0.29919]
[1735736284466,0.2992,3348.7,3348.6,3.50701]
[1735736284662,0.4618,3348.7,3348.6,3.50701]
[1735736285468,0.2992,3348.8,3348.7,0.2992]
[1735736285669,0.75759,3348.9,3348.8,0.29919]
[1735736285968,0.29919,3348.9,3348.8,0.29919]
[1735736286467,0.29919,3348.9,3348.8,41.09919]
[1735736286867,0.29919,3348.9,3348.8,41.54679]
[1735736287570,0.29918,3349.0,3348.9,0.29918]
[1735736287970,5.9599,3349.4,3349.0,0.29917]
[1735736288172,0.29916,3349.2,3349.1,0.29916]
[1735736288566,0.894,3349.3,3348.8,41.2476]
[1735736288771,2.26661634,3349.6,3349.3,0.29915]
[1735736288772,0.29913,3349.5,3349.3,0.29915]
[1735736288971,0.29913,3349.5,3349.4,0.29914]
[1735736290869,0.29911,3349.7,3349.6,0.29912]
[1735736292573,3.50691,3349.8,3349.7,0.29911]
[1735736292771,0.29912,3349.7,3349.6,0.29912]
[1735736293775,3.2078,3349.8,3349.1,0.74792]
[1735736293973,0.29913,3349.6,3349.5,0.29913]
[1735736297980,3.2078,3349.8,3349.0,8.6641818]
[1735736298179,3.2078,3349.8,3349.0,7.9162618]
[1735736298473,0.29914,3349.5,3349.4,0.29913]
[1735736298882,3.2078,3349.8,3349.1,0.4306]
[1735736299178,0.29913,3349.5,3349.4,0.29913]
[1735736300678,3.2078,3349.8,3349.1,0.4306]
[1735736300873,0.29914,3349.5,3349.4,0.29913]
[1735736301180,0.29916,3349.3,3349.2,0.29915]
[1735736301373,0.29916,3349.3,3349.1,0.4306]
[1735736301374,0.29916,3349.2,3349.1,0.72976]
[1735736302177,0.4201,3349.4,3349.1,0.4306]
[1735736302379,0.29915,3349.3,3349.2,0.29915]
[1735736309387,0.29916,3349.2,3349.1,0.72976]
[1735736321697,0.4392,3349.3,3349.2,0.29916]
[1735736321897,0.73835,3349.3,3349.2,0.29916]
[1735736324398,0.29914,3349.4,3349.3,0.29913]
[1735736324799,0.29914,3349.4,3349.3,0.72003]
[1735736328911,1.37185935,3349.4,3349.3,0.72003]
[1735736330306,0.29911,3349.8,3349.7,0.2991]
[1735736330802,0.29911,3349.8,3349.7,0.7476]
[1735736331205,0.29911,3349.8,3349.7,0.2991]
[1735736334507,0.29912,3349.6,3349.4,0.74763]
[1735736334707,1.07271935,3349.5,3349.4,0.74763]
[1735736335905,1.37184935,3349.5,3349.4,0.74763]
[1735736336103,1.37184935,3349.5,3349.4,0.4485]
[1735736336506,1.37184935,3349.5,3349.4,0.74764]
[1735736336804,1.07271935,3349.5,3349.4,0.74764]
[1735736337309,1.37184935,3349.5,3349.4,0.74764]
[1735736338604,1.07271935,3349.5,3349.4,0.74764]
[1735736339714,0.4569,3349.6,3349.4,0.4485]
[1735736340012,0.4569,3349.6,3349.5,0.29913]
[1735736340605,0.29912,3349.6,3349.5,0.29913]
[1735736341008,0.72992,3349.6,3349.5,0.29913]
[1735736341209,0.29913,3349.5,3349.4,0.74763]
[1735736341410,1.37184935,3349.5,3349.4,0.74763]
[1735736341716,1.37184935,3349.5,3349.4,0.4485]
[1735736343715,1.37184935,3349.5,3349.4,0.74764]
[1735736347521,1.07271935,3349.5,3349.4,0.74764]
[1735736349322,0.72993,3349.6,3349.5,0.29913]
[1735736349323,0.4308,3349.6,3349.5,0.29913]
[1735736349523,1.52361935,3349.7,3349.6,0.29912]
[1735736349725,1.07271935,3349.7,3349.6,0.29912]
[1735736349919,1.07271935,3349.7,3349.6,41.09912]
[1735736351417,4.28051935,3349.7,3349.4,5.1569618]
[1735736351624,1.37184935,3349.5,3349.4,4.7084618]
[1735736352615,0.29915,3349.4,3349.1,41.09916]
[1735736352819,1.50061935,3349.3,3349.1,41.09916]
[1735736353114,1.79976935,3349.3,3349.1,41.09916]
[1735736355521,0.72705,3349.3,3349.1,41.09916]
[1735736355829,0.4279,3349.3,3349.1,41.09916]
[1735736356925,0.74354,3349.4,3349.1,40.8]
[1735736357129,0.74354,3349.4,3349.2,0.74196]
[1735736357325,0.74354,3349.4,3349.3,0.4619]
[1735736359829,1.63654,3349.4,3349.3,0.4619]
[1735736368138,0.29914,3349.4,3349.3,0.4619]
[1735736371837,1.37185935,3349.4,3349.3,0.4619]
[1735736377436,0.29914,3349.4,3349.3,0.4619]
[1735736381947,3.50694,3349.5,3349.4,0.29914]
[1735736382142,3.50694,3349.5,3349.4,1.21894]
[1735736382338,3.2078,3349.5,3349.4,1.21894]
[1735736382743,3.2078,3349.5,3349.4,2.29165935]
[1735736383046,3.50693,3349.5,3349.4,2.29165935]
[1735736384244,0.29913,3349.5,3349.4,2.29165935]
[1735736386250,0.29913,3349.5,3349.4,1.99251935]
[1735736387350,0.29913,3349.5,3349.4,0.9198]
[1735736388552,1.07271935,3349.6,3349.3,0.4619]
[1735736388849,0.29915,3349.3,3349.2,4.7084618]
[1735736390052,0.29916,3349.2,3349.1,3.2078]
[1735736390651,1.53121935,3349.4,3349.0,5.1575618]
[1735736390850,0.29917,3349.1,3349.0,5.1575618]
[1735736391050,0.29917,3349.1,3349.0,3.6569]
[1735736392151,0.29917,3349.1,3349.0,5.02878935]
[1735736392454,0.29917,3349.1,3349.0,45.82878935]
[1735736394152,0.29917,3349.1,3349.0,42.62098935]
[1735736395056,0.29917,3349.1,3349.0,42.32181935]
[1735736395249,0.29917,3349.1,3349.0,41.2491]
[1735736395950,0.29917,3349.1,3349.0,41.54827]
[1735736397057,0.29917,3349.1,3349.0,41.2491]
[1735736397859,2.27907935,3349.4,3348.9,3.2078]
[1735736397860,0.29917,3349.0,3348.9,3.2078]
[1735736398055,0.29918,3348.9,3348.8,4.7084618]
[1735736398256,0.29919,3348.8,3348.7,9.33755701]
[1735736398958,0.29919,3348.8,3348.7,50.13755701]
[1735736399360,0.29919,3348.8,3348.7,47.54698144]
[1735736399959,0.29919,3348.8,3348.7,47.84618144]
[1735736400361,1.37190935,3348.8,3348.7,47.54698144]
[1735736400561,1.37190935,3348.8,3348.7,52.24122375]
[1735736401157,1.37190935,3348.8,3348.7,11.44122375]
[1735736401550,1.37190935,3348.8,3348.7,4.69424231]
[1735736401758,0.29921,3348.6,3348.5,45.49424231]
[1735736401955,1.37192935,3348.6,3348.5,45.49424231]
[1735736402760,1.37192935,3348.6,3348.5,40.8]
[1735736404555,1.07271935,3348.6,3348.2,4.69424231]
[1735736404856,1.37195935,3348.3,3348.2,4.69424231]
[1735736406262,1.37195935,3348.3,3348.1,3.2078]
[1735736406263,0.29925,3348.2,3348.1,3.2078]
[1735736406564,0.29927,3347.9,3347.8,45.79352231]
[1735736407268,1.37198935,3347.9,3347.8,41.09928]
[1735736407560,1.37198935,3347.9,3347.8,40.8]
[1735736407764,2.23838935,3347.9,3347.8,40.8]
[1735736407958,0.2993,3347.6,3347.5,4.69424231]
[1735736408159,1.37201935,3347.6,3347.5,4.69424231]
[1735736408359,1.37201935,3347.6,3347.5,40.8]
[1735736410266,0.2993,3347.6,3347.5,40.8]
[1735736411669,0.2993,3347.7,3347.6,0.2993]
[1735736412268,0.2993,3347.6,3347.5,41.0993]
[1735736416070,0.2993,3347.7,3347.6,0.2993]
[1735736416264,0.8664,3347.9,3347.5,40.8]
[1735736416572,0.29929,3347.7,3347.6,1.22329]
[1735736417566,0.29929,3347.7,3347.6,0.924]
[1735736423974,0.29929,3347.7,3347.6,0.4652]
[1735736424165,0.2993,3347.6,3347.5,40.8]
[1735736424364,0.7595,3347.6,3347.5,40.8]
[1735736424564,0.29933,3347.3,3347.2,3.2078]
[1735736425271,0.74663,3347.3,3347.2,3.2078]
[1735736426374,0.4473,3347.3,3346.9,0.29936]
[1735736426576,0.29935,3347.0,3346.9,0.29936]
[1735736428676,0.29935,3347.0,3346.9,0.71996]
[1735736432679,0.29935,3347.0,3346.9,41.51996]
[1735736435277,1.37340977,3347.0,3346.9,0.4206]
[1735736437884,0.29935,3347.0,3346.9,0.4206]
[1735736440188,0.29935,3347.0,3346.9,0.71996]
[1735736440385,0.29935,3347.1,3347.0,0.29934]
[1735736440592,3.2078,3347.5,3347.0,1.07405977]
[1735736440883,0.29928,3347.8,3347.7,0.29928]
[1735736441289,0.2993,3347.7,3347.6,0.2993]
[1735736444291,3.6561,3347.9,3347.5,1.3061]
[1735736444596,0.29929,3347.8,3347.7,0.29928]
[1735736450795,0.4273,3348.0,3347.5,1.3061]
[1735736450998,0.2993,3347.7,3347.6,0.29929]
[1735736453186,0.4273,3348.0,3347.6,0.29929]
[1735736453390,0.29929,3347.8,3347.7,0.29928]
[1735736454293,0.4273,3348.0,3347.5,1.3061]
[1735736454590,0.2993,3347.7,3347.6,0.29929]
[1735736456098,0.29929,3347.8,3347.7,0.29928]
[1735736461502,0.4273,3348.0,3347.5,1.3061]
[1735736461703,0.29929,3347.9,3347.8,0.29927]
[1735736462304,0.29929,3347.9,3347.8,41.09927]
[1735736462610,0.29929,3347.9,3347.8,40.8]
[1735736463308,2.26798838,3347.9,3347.4,3.2078]
[1735736463501,0.4273,3348.0,3347.4,3.2078]
[1735736463502,0.29931,3347.5,3347.4,3.2078]
[1735736463900,0.72881,3347.5,3347.4,3.50712]
[1735736465801,1.63481,3347.8,3347.4,8.50712]
[1735736465802,0.74821,3347.8,3347.4,8.50712]
[1735736466015,0.24544326,3348.8,3347.4,8.50712]
[1735736466016,0.29918,3348.9,3347.8,0.74821]
[1735736466304,4.84066,3349.4,3349.2,0.29915]
[1735736466305,0.29916,3349.3,3349.2,0.29915]
[1735736466495,1.37180235,3349.3,3349.2,0.29915]
[1735736466696,1.07265235,3349.3,3349.2,3.50695]
[1735736466897,1.18414,3349.4,3349.2,40.8]
[1735736467102,0.885,3349.4,3349.3,0.29915]
[1735736467302,1.18414,3349.4,3349.3,0.29915]
[1735736467502,0.885,3349.4,3349.3,0.29915]
[1735736468010,0.4506,3349.4,3349.3,0.29915]
[1735736468207,0.4506,3349.4,3349.2,40.8]
[1735736468411,0.29915,3349.3,3349.2,41.09915]
[1735736468610,0.29915,3349.3,3349.2,0.29915]
[1735736469004,0.29916,3349.2,3349.0,0.29917]
[1735736469804,0.29916,3349.2,3349.1,0.29917]
[1735736470108,0.29915,3349.3,3349.1,0.29917]
[1735736471207,0.4506,3349.4,3348.8,4.1223]
[1735736471509,0.74974,3349.4,3349.3,0.29915]
[1735736472312,0.4506,3349.4,3349.3,0.29915]
[1735736472811,5.9599,3350.0,3349.3,7.26594543]
[1735736473112,0.29901,3350.9,3350.2,0.29907]
[1735736473313,3.2078,3350.6,3349.9,4.3778]
[1735736473612,0.29906,3350.4,3350.1,0.29907]
[1735736473812,5.47374543,3351.0,3349.9,4.3778]
[1735736474007,0.29904,3350.5,3350.2,0.29906]
[1735736477814,0.29905,3350.4,3350.2,0.29906]
[1735736478015,0.29905,3350.4,3350.1,0.29907]
[1735736478410,0.29905,3350.4,3350.2,0.29907]
[1735736478609,0.29905,3350.4,3349.9,4.8394]
[1735736478815,3.2078,3350.6,3349.9,3.6694]
[1735736479018,3.2078,3350.2,3349.4,3.2078]
[1735736479222,2.26594543,3350.1,3349.4,3.2078]
[1735736479415,3.2078,3349.7,3349.3,0.29914]
[1735736479615,0.4617,3349.6,3349.3,0.29914]
[1735736479916,0.76082,3349.6,3349.3,0.29914]
[1735736480919,0.4617,3349.6,3349.3,0.29914]
[1735736481119,0.29913,3349.5,3349.3,0.29914]
[1735736481319,0.4617,3349.6,3349.2,0.4616]
[1735736481519,0.76083,3349.6,3349.4,0.29914]
[1735736481818,0.4617,3349.6,3349.5,0.29913]
[1735736483317,3.2078,3350.1,3349.4,3.2078]
[1735736483519,0.29909,3350.0,3349.4,3.2078]
[1735736483719,3.50688,3350.1,3349.5,0.29913]
[1735736484022,0.29908,3350.1,3349.8,0.29909]
[1735736484319,0.29909,3350.0,3349.8,0.29909]
[1735736484715,0.29909,3350.0,3349.4,5.47374543]
[1735736484920,0.29909,3350.0,3349.9,0.29909]
[1735736485120,0.29909,3350.0,3349.8,0.2991]
[1735736488523,0.4322,3350.2,3349.8,0.2991]
[1735736488725,0.29909,3349.9,3349.8,0.2991]
[1735736490319,0.4322,3350.2,3349.7,3.2078]
[1735736490521,0.29909,3350.0,3349.9,0.29909]
[1735736490727,0.4322,3350.2,3349.7,3.2078]
[1735736491027,0.73127,3350.2,3350.1,0.29908]
[1735736491525,0.4322,3350.2,3350.1,0.29908]
[1735736493821,4.1017,3350.5,3349.8,41.2492]
[1735736494023,3.94394,3350.5,3350.4,0.29905]
[1735736494329,0.29906,3350.3,3350.2,0.29906]
[1735736495423,0.29906,3350.4,3350.3,0.29906]
[1735736496120,0.29907,3350.2,3349.9,0.29909]
[1735736496324,0.29907,3350.2,3350.1,0.29908]
[1735736496525,0.29906,3350.3,3350.2,0.29906]
[1735736496727,0.29906,3350.4,3350.3,0.29905]
[1735736497020,3.6449,3350.5,3350.3,0.29905]
[1735736497227,3.2078,3350.5,3350.4,0.29905]
[1735736499219,0.15817851,3351.1,3350.4,1.184]
[1735736499424,0.29901,3350.9,3350.8,0.29901]
[1735736499922,0.75858,3351.2,3351.0,0.299]
[1735736500126,0.75858,3351.2,3351.1,0.73179]
[1735736500832,0.75858,3351.2,3351.1,0.4328]
[1735736502029,0.299,3351.0,3350.8,0.4365]
[1735736502227,3.6612,3351.4,3350.9,0.441]
[1735736502532,0.299,3351.0,3350.9,0.74]
[1735736503226,0.299,3351.0,3350.6,3.2078]
[1735736503420,0.4589,3351.3,3350.7,0.29902]
[1735736503624,0.29901,3350.9,3350.8,0.29901]
[1735736504025,0.4589,3351.3,3350.6,3.6488]
[1735736504226,0.29899,3351.1,3350.6,3.6488]
[1735736504529,0.29898,3351.2,3351.1,0.29898]
[1735736505932,0.299,3351.0,3350.9,0.299]
[1735736506529,0.29899,3351.1,3351.0,0.29899]
[1735736507835,0.29901,3350.9,3350.8,0.29901]
[1735736509333,0.29897,3351.3,3351.0,0.29899]
[1735736509536,0.29898,3351.2,3351.1,0.4531]
[1735736510832,0.29898,3351.2,3351.1,0.75209]
[1735736513239,3.6279,3351.4,3351.1,0.4531]
[1735736513545,0.29898,3351.3,3351.2,0.72577]
[1735736514238,0.8731,3351.7,3351.2,0.4268]
[1735736514434,0.29896,3351.5,3351.4,0.29895]
[1735736514938,0.29896,3351.5,3351.4,41.09895]
[1735736516539,0.29896,3351.5,3351.4,40.8]
[1735736516738,1.3069,3351.7,3351.3,0.29896]
[1735736517037,0.29896,3351.4,3351.3,0.29896]
[1735736517236,1.3069,3351.7,3351.2,0.72577]
[1735736517237,0.29897,3351.3,3351.2,0.72577]
[1735736517835,0.29897,3351.3,3351.2,41.52577]
[1735736518833,1.3069,3351.7,3351.2,41.2268]
[1735736519032,0.29897,3351.4,3351.3,0.29896]
[1735736523040,0.29896,3351.5,3351.4,0.29895]
[1735736524838,3.2078,3351.8,3351.2,41.2268]
[1735736525039,0.29897,3351.3,3351.2,41.52577]
[1735736530239,0.29897,3351.3,3351.2,41.83225594]
[1735736530650,0.29897,3351.3,3351.2,41.52577]
[1735736530956,0.29897,3351.4,3351.3,0.29896]
[1735736531654,0.4227,3351.5,3351.2,41.52577]